bitfinex/quotes_BTCUSD_20250204
["timestamp","ask_amount","ask_price","bid_price","bid_amount"]
[1738671657738,0.150972,99356.0,99355.0,0.0461]
[1738671658993,0.150976,99353.0,99352.0,2.8e-07]
[1738671660842,0.131976,99353.0,99352.0,2.8e-07]
[1738671662773,0.1320828,99353.0,99352.0,2.8e-07]
[1738671663121,0.17291339,99353.0,99352.0,2.8e-07]
[1738671663340,0.23326339,99353.0,99352.0,2.8e-07]
[1738671663552,0.23825221,99353.0,99352.0,2.8e-07]
[1738671664202,0.13707162,99353.0,99352.0,2.8e-07]
[1738671664414,0.13807162,99353.0,99352.0,2.8e-07]
[1738671665435,0.13907162,99353.0,99352.0,2.8e-07]
[1738671665641,0.13807162,99353.0,99352.0,2.8e-07]
[1738671665842,0.13707162,99353.0,99352.0,2.8e-07]
[1738671666899,0.13807162,99353.0,99352.0,2.8e-07]
[1738671667113,0.15707162,99353.0,99352.0,2.8e-07]
[1738671667340,0.15607162,99353.0,99352.0,2.8e-07]
[1738671667937,0.21642162,99353.0,99352.0,2.8e-07]
[1738671668117,0.15607162,99353.0,99352.0,2.8e-07]
[1738671668545,0.25845668,99353.0,99352.0,2.8e-07]
[1738671668751,0.46880668,99353.0,99352.0,2.8e-07]
[1738671668925,0.46880668,99353.0,99352.0,0.00100028]
[1738671669349,0.46880668,99353.0,99352.0,2.8e-07]
[1738671669730,0.48859759,99353.0,99352.0,2.8e-07]
[1738671669944,0.48759759,99353.0,99352.0,2.8e-07]
[1738671670639,0.49359759,99353.0,99352.0,2.8e-07]
[1738671670899,0.48959759,99353.0,99352.0,2.8e-07]
[1738671671081,0.48759759,99353.0,99352.0,2.8e-07]
[1738671671283,0.79029759,99353.0,99352.0,2.8e-07]
[1738671671499,0.79229759,99353.0,99352.0,2.8e-07]
[1738671671914,0.82237271,99353.0,99352.0,2.8e-07]
[1738671672547,0.82337271,99353.0,99352.0,2.8e-07]
[1738671672809,0.82237271,99353.0,99352.0,2.8e-07]
[1738671673077,0.92486743,99353.0,99352.0,2.8e-07]
[1738671673316,1.00806743,99353.0,99352.0,2.8e-07]
[1738671673566,0.84522271,99353.0,99352.0,2.8e-07]
[1738671673769,0.85022271,99353.0,99352.0,2.8e-07]
[1738671674620,0.70022271,99353.0,99352.0,2.8e-07]
[1738671675943,0.61702271,99353.0,99352.0,2.8e-07]
[1738671677640,0.61202271,99353.0,99352.0,2.8e-07]
[1738671677855,0.71251743,99353.0,99352.0,2.8e-07]
[1738671678086,0.71751743,99353.0,99352.0,2.8e-07]
[1738671678724,0.61502271,99353.0,99352.0,2.8e-07]
[1738671679362,0.61002271,99353.0,99352.0,2.8e-07]
[1738671679751,0.61502271,99353.0,99352.0,2.8e-07]
[1738671682313,0.63802271,99353.0,99352.0,2.8e-07]
[1738671682697,2.13802271,99353.0,99352.0,2.8e-07]
[1738671682858,2.24051743,99353.0,99352.0,2.8e-07]
[1738671683065,0.61502271,99353.0,99352.0,2.8e-07]
[1738671683495,0.67537271,99353.0,99352.0,2.8e-07]
[1738671684164,0.67737271,99353.0,99352.0,2.8e-07]
[1738671685679,0.64729759,99353.0,99352.0,2.8e-07]
[1738671689108,0.64229759,99353.0,99352.0,2.8e-07]
[1738671689640,0.64629759,99353.0,99352.0,2.8e-07]
[1738671690859,0.64429759,99353.0,99352.0,2.8e-07]
[1738671691832,0.64629759,99353.0,99352.0,2.8e-07]
[1738671692063,0.74879231,99353.0,99352.0,2.8e-07]
[1738671692266,0.74479231,99353.0,99352.0,2.8e-07]
[1738671692642,0.74879231,99353.0,99352.0,2.8e-07]
[1738671693069,0.74479231,99353.0,99352.0,2.8e-07]
[1738671693731,0.64229759,99353.0,99352.0,2.8e-07]
[1738671695182,0.64729759,99353.0,99352.0,2.8e-07]
[1738671695643,0.79729759,99353.0,99352.0,2.8e-07]
[1738671696539,0.79529759,99353.0,99352.0,2.8e-07]
[1738671697384,0.79729759,99353.0,99352.0,2.8e-07]
[1738671701127,0.83752609,99353.0,99352.0,2.8e-07]
[1738671701344,0.79729759,99353.0,99352.0,2.8e-07]
[1738671703441,0.79529759,99353.0,99352.0,2.8e-07]
[1738671704875,0.79029759,99353.0,99352.0,2.8e-07]
[1738671705073,0.79329759,99353.0,99352.0,2.8e-07]
[1738671705479,0.79029759,99353.0,99352.0,2.8e-07]
[1738671706482,0.79329759,99353.0,99352.0,2.8e-07]
[1738671706895,0.53993653,99353.0,99352.0,2.8e-07]
[1738671707190,0.69091253,99353.0,99352.0,2.8e-07]
[1738671708098,0.68791253,99353.0,99352.0,2.8e-07]
[1738671708273,0.68891253,99353.0,99352.0,2.8e-07]
[1738671708547,0.68791253,99353.0,99352.0,2.8e-07]
[1738671708787,0.38693653,99353.0,99352.0,0.04590028]
[1738671708984,0.38693653,99353.0,99352.0,0.12590028]
[1738671709298,0.32758653,99353.0,99352.0,0.12590028]
[1738671709489,0.32159771,99353.0,99352.0,0.12590028]
[1738671709699,0.32785842,99353.0,99352.0,0.12590028]
[1738671709909,0.02715842,99353.0,99352.0,0.27687828]
[1738671710321,0.02189771,99353.0,99352.0,0.37926334]
[1738671710531,0.0031068,99353.0,99352.0,0.37926334]
[1738671710955,0.07439987,99358.0,99352.0,0.10238534]
[1738671711156,0.07439987,99358.0,99357.0,0.27437]
[1738671712212,0.07439987,99358.0,99357.0,0.37675506]
[1738671712413,0.07439987,99358.0,99357.0,0.38075506]
[1738671712819,0.0001068,99363.0,99362.0,0.150963]
[1738671712956,0.0001068,99363.0,99362.0,0.27827051]
[1738671713154,0.0001068,99363.0,99362.0,0.277063]
[1738671715874,0.01656086,99387.0,99362.0,0.1242]
[1738671716085,0.1359664,99390.0,99377.0,0.0485]
[1738671716968,0.17094327,99390.0,99377.0,0.0485]
[1738671717547,0.17094327,99390.0,99377.0,0.0495]
[1738671718567,0.17094327,99390.0,99377.0,0.20044]
[1738671718787,0.15,99395.0,99386.0,0.0794]
[1738671718969,0.3027,99396.0,99388.0,0.0483]
[1738671719306,0.3027,99396.0,99394.0,0.150913]
[1738671719531,0.3027,99396.0,99391.0,0.150918]
[1738671719723,0.3027,99396.0,99390.0,0.150919]
[1738671720127,0.30317062,99396.0,99395.0,0.150913]
[1738671720676,0.30317062,99396.0,99389.0,0.0794]
[1738671721089,0.30317062,99396.0,99388.0,0.0523]
[1738671721289,0.150919,99391.0,99383.0,0.0759]
[1738671721552,0.1359664,99393.0,99383.0,0.0759]
[1738671721747,0.23835146,99393.0,99383.0,0.0759]
[1738671722164,0.10238506,99392.0,99377.0,0.0461]
[1738671722339,0.150926,99386.0,99377.0,0.0461]
[1738671722575,0.1359664,99387.0,99377.0,0.0461]
[1738671722756,0.2868914,99387.0,99377.0,0.0461]
[1738671723272,0.1359664,99387.0,99377.0,0.0461]
[1738671723574,0.00545398,99386.0,99377.0,0.0501]
[1738671724015,0.00545398,99386.0,99377.0,0.0461]
[1738671724136,0.03525011,99390.0,99381.0,0.150932]
[1738671724341,0.00545627,99389.0,99381.0,0.150932]
[1738671724583,0.00545627,99389.0,99379.0,0.201249]
[1738671724817,0.00545627,99389.0,99377.0,0.0461]
[1738671724818,0.150922,99389.0,99377.0,0.0461]
[1738671725014,0.00545551,99388.0,99377.0,0.19704]
[1738671725171,0.00545551,99388.0,99378.0,0.150938]
[1738671725898,0.00545551,99388.0,99377.0,0.0461]
[1738671726098,0.00545551,99388.0,99377.0,0.0501]
[1738671726304,0.150931,99383.0,99377.0,0.0501]
[1738671726463,0.00545091,99382.0,99377.0,0.0461]
[1738671726659,0.1359664,99390.0,99377.0,0.0461]
[1738671726904,0.00545627,99389.0,99379.0,0.201249]
[1738671727110,0.3347806,99395.0,99382.0,0.150932]
[1738671727331,0.00546231,99394.0,99379.0,0.201249]
[1738671727536,0.00546231,99394.0,99380.0,0.150935]
[1738671728116,0.00546231,99394.0,99379.0,0.201249]
[1738671728524,0.00546231,99394.0,99381.0,0.150934]
[1738671729320,0.00546231,99394.0,99377.0,0.0461]
[1738671729321,0.00546231,99394.0,99388.0,0.150923]
[1738671729521,0.00546231,99394.0,99391.0,0.0762]
[1738671730609,0.00546231,99394.0,99391.0,0.227119]
[1738671730798,0.00057742,99396.0,99391.0,0.0762]
[1738671731483,0.00057742,99396.0,99392.0,0.150917]
[1738671731860,0.00057742,99396.0,99391.0,0.0762]
[1738671732681,0.00546647,99395.0,99391.0,0.0762]
[1738671732998,0.001,99394.0,99385.0,0.0818]
[1738671733182,0.00546647,99395.0,99385.0,0.0818]
[1738671733314,0.06035,99394.0,99385.0,0.0818]
[1738671733523,0.00550107,99393.0,99385.0,0.0818]
[1738671733716,0.06585107,99393.0,99385.0,0.0818]
[1738671733923,0.06585107,99393.0,99391.0,0.002]
[1738671734375,0.06585107,99393.0,99385.0,0.0818]
[1738671735135,0.00550107,99393.0,99391.0,0.150918]
[1738671735335,0.00057742,99396.0,99391.0,0.150918]
[1738671735585,0.00457511,99395.0,99385.0,0.0818]
[1738671735785,0.00457511,99395.0,99387.0,0.150925]
[1738671735958,0.00457511,99395.0,99386.0,0.201234]
[1738671736183,0.00457511,99395.0,99391.0,0.150918]
[1738671736506,0.00457511,99395.0,99387.0,0.0495]
[1738671736717,0.00457511,99395.0,99391.0,0.150918]
[1738671737120,0.00057742,99396.0,99392.0,0.0821]
[1738671737364,0.00057742,99396.0,99395.0,0.150913]
[1738671738645,0.0022227,99397.0,99396.0,0.150911]
[1738671738889,0.0022227,99397.0,99396.0,0.40190305]
[1738671739126,0.0022227,99397.0,99396.0,0.40069606]
[1738671739368,0.0022227,99397.0,99396.0,0.37769606]
[1738671739853,0.0022227,99397.0,99396.0,0.275311]
[1738671740576,0.0022227,99397.0,99396.0,0.1284]
[1738671740823,0.0022227,99397.0,99396.0,0.004]
[1738671741069,0.0022227,99397.0,99385.0,0.00022428]
[1738671741070,0.150917,99393.0,99385.0,0.00022428]
[1738671741303,0.10238506,99397.0,99385.0,0.00022428]
[1738671741782,0.201222,99393.0,99385.0,0.00022428]
[1738671742040,0.352126,99396.0,99385.0,0.00022428]
[1738671742275,0.10238506,99397.0,99385.0,0.00022428]
[1738671742615,0.150914,99394.0,99385.0,0.00022428]
[1738671742836,0.150914,99394.0,99387.0,0.001]
[1738671743330,0.150914,99394.0,99385.0,0.00022428]
[1738671743581,0.03,99398.0,99385.0,0.20146128]
[1738671743798,0.03,99398.0,99391.0,0.150918]
[1738671744001,0.03,99398.0,99385.0,0.20546128]
[1738671744215,0.03,99398.0,99395.0,0.150912]
[1738671744417,0.03,99398.0,99397.0,0.150909]
[1738671744621,0.03,99398.0,99394.0,0.201217]
[1738671744829,0.03,99398.0,99395.0,0.150913]
[1738671745038,0.03,99398.0,99391.0,0.150917]
[1738671745244,0.03,99398.0,99387.0,0.0456]
[1738671745953,0.011,99398.0,99385.0,0.00322428]
[1738671746150,0.201215,99396.0,99385.0,0.00022428]
[1738671746449,0.011,99398.0,99391.0,0.001]
[1738671746670,0.150909,99397.0,99391.0,0.001]
[1738671746901,0.150911,99397.0,99386.0,0.150926]
[1738671747132,0.0107947,99400.0,99388.0,0.150923]
[1738671747611,0.150906,99399.0,99388.0,0.150923]
[1738671747856,0.150906,99399.0,99391.0,0.001]
[1738671748319,0.150909,99398.0,99391.0,0.001]
[1738671748560,7.571e-05,99398.0,99392.0,0.150916]
[1738671748822,7.571e-05,99398.0,99391.0,0.001]
[1738671749289,0.15098471,99398.0,99391.0,0.001]
[1738671749518,0.150912,99396.0,99385.0,0.15115128]
[1738671749750,0.150911,99397.0,99386.0,0.150926]
[1738671749976,7.571e-05,99398.0,99388.0,0.002]
[1738671749977,0.00018251,99398.0,99388.0,0.002]
[1738671750176,0.15109051,99398.0,99391.0,0.001]
[1738671750544,0.00018251,99398.0,99391.0,0.004]
[1738671750781,0.00018251,99398.0,99388.0,0.150923]
[1738671751015,0.13208951,99399.0,99386.0,0.001]
[1738671751219,0.13208951,99399.0,99388.0,0.004]
[1738671751429,0.15091,99397.0,99388.0,0.004]
[1738671751656,0.201209,99399.0,99388.0,0.004]
[1738671751893,0.150908,99398.0,99388.0,0.004]
[1738671752135,0.150922,99389.0,99388.0,0.004]
[1738671753460,0.150925,99387.0,99386.0,0.00147062]
[1738671754069,0.150925,99387.0,99386.0,0.00047062]
[1738671755239,0.25331006,99387.0,99386.0,0.00047062]
[1738671755387,0.25331006,99387.0,99386.0,0.00347062]
[1738671756048,0.23431006,99387.0,99386.0,0.00347062]
[1738671757067,0.23431006,99387.0,99386.0,0.00447062]
[1738671757425,0.22599196,99387.0,99386.0,0.00447062]
[1738671758323,0.28634196,99387.0,99386.0,0.00447062]
[1738671760229,0.58904196,99387.0,99386.0,0.00447062]
[1738671760432,0.73904196,99387.0,99386.0,0.00447062]
[1738671760861,0.61543506,99387.0,99386.0,0.00447062]
[1738671761062,0.76636006,99387.0,99386.0,0.00347062]
[1738671761267,0.84536006,99387.0,99386.0,0.00047062]
[1738671761491,0.84536006,99387.0,99386.0,0.00447062]
[1738671761930,0.84536006,99387.0,99386.0,0.00147062]
[1738671762107,0.94785478,99387.0,99386.0,0.0016949]
[1738671762342,0.84736006,99387.0,99386.0,0.0016949]
[1738671762975,0.89286006,99387.0,99386.0,0.0006949]
[1738671763197,0.96004897,99387.0,99386.0,0.0006949]
[1738671763864,0.89286006,99387.0,99386.0,0.0006949]
[1738671764072,0.91386006,99387.0,99386.0,0.0006949]
[1738671765101,0.91786006,99387.0,99386.0,0.0016949]
[1738671765335,0.91386006,99387.0,99386.0,0.0006949]
[1738671765499,2.41386006,99387.0,99386.0,0.0006949]
[1738671765719,2.41786006,99387.0,99386.0,0.0016949]
[1738671765916,2.52035478,99387.0,99386.0,0.0016949]
[1738671766121,2.52035478,99387.0,99386.0,0.0006949]
[1738671766122,2.51635478,99387.0,99386.0,0.0006949]
[1738671766760,2.51635478,99387.0,99385.0,0.00022428]
[1738671766761,0.384276,99386.0,99385.0,1.8e-07]
[1738671766976,0.57546106,99386.0,99385.0,1.8e-07]
[1738671767178,0.67795578,99386.0,99385.0,1.8e-07]
[1738671767382,0.300966,99360.0,99359.0,0.08058464]
[1738671767588,0.76640106,99360.0,99359.0,0.08058464]
[1738671767793,0.361326,99353.0,99352.0,2.8e-07]
[1738671767990,0.46371106,99353.0,99352.0,2.8e-07]
[1738671768224,0.40336106,99353.0,99352.0,2.8e-07]
[1738671768834,0.70606106,99353.0,99352.0,2.8e-07]
[1738671769236,0.70610806,99353.0,99352.0,2.8e-07]
[1738671769377,0.81260278,99353.0,99352.0,0.00100028]
[1738671769578,0.80860278,99353.0,99352.0,0.00996028]
[1738671769820,0.92724489,99353.0,99352.0,0.00996028]
[1738671771546,0.93324489,99353.0,99352.0,0.01096028]
[1738671771747,2.43324489,99353.0,99352.0,0.01096028]
[1738671771953,2.42724489,99353.0,99352.0,0.00996028]
[1738671772408,2.43324489,99353.0,99352.0,0.01096028]
[1738671772611,2.43324489,99353.0,99352.0,0.00996028]
[1738671772815,2.42724489,99353.0,99352.0,0.00996028]
[1738671772951,2.43624489,99353.0,99352.0,0.01096028]
[1738671773161,0.301005,99334.0,99317.0,0.046]
[1738671773369,0.70609006,99334.0,99317.0,0.046]
[1738671773573,0.80858478,99334.0,99317.0,0.046]
[1738671773780,0.70609006,99334.0,99317.0,0.046]
[1738671775047,0.75477715,99334.0,99317.0,0.046]
[1738671775618,0.75677715,99334.0,99317.0,0.046]
[1738671775804,0.75677715,99334.0,99325.0,0.082]
[1738671776009,0.75477715,99334.0,99325.0,0.082]
[1738671776199,0.75877715,99334.0,99317.0,0.128]
[1738671776415,0.79939614,99334.0,99317.0,0.128]
[1738671776721,0.71009006,99334.0,99317.0,0.128]
[1738671777814,0.75051482,99334.0,99317.0,0.128]
[1738671778228,0.74651482,99334.0,99317.0,0.128]
[1738671778586,0.74951482,99334.0,99317.0,0.128]
[1738671779189,0.79909546,99334.0,99317.0,0.128]
[1738671780307,0.76919968,99334.0,99317.0,0.128]
[1738671782096,0.76919968,99334.0,99317.0,0.046]
[1738671782238,0.76919968,99334.0,99333.0,0.07782428]
[1738671782645,0.76819968,99334.0,99333.0,0.07782428]
[1738671782845,0.76519968,99334.0,99333.0,0.07782428]
[1738671783428,0.82654968,99334.0,99333.0,0.07782428]
[1738671783801,0.82654968,99334.0,99333.0,0.07691368]
[1738671785577,0.82554968,99334.0,99333.0,0.07691368]
[1738671785784,0.82554968,99334.0,99333.0,0.12571368]
[1738671786171,0.82654968,99334.0,99333.0,0.12571368]
[1738671786573,0.82554968,99334.0,99333.0,0.12571368]
[1738671786769,0.82654968,99334.0,99333.0,0.12571368]
[1738671788316,0.82554968,99334.0,99333.0,0.12571368]
[1738671789154,0.82554968,99334.0,99333.0,0.12593796]
[1738671789356,0.66281462,99334.0,99333.0,0.12593796]
[1738671789560,0.32138486,99334.0,99333.0,0.12593796]
[1738671790044,0.01868486,99334.0,99333.0,0.12593796]
[1738671790281,0.31968986,99334.0,99333.0,0.12593796]
[1738671791040,0.30068986,99334.0,99333.0,0.12593796]
[1738671792196,0.15,99334.0,99333.0,0.12593796]
[1738671792450,0.301005,99334.0,99333.0,0.12593796]
[1738671793124,0.301005,99334.0,99333.0,0.12793796]
[1738671794538,0.301005,99334.0,99333.0,0.05102428]
[1738671794767,0.301005,99334.0,99333.0,0.00322428]
[1738671795301,0.301005,99334.0,99333.0,0.00122428]
[1738671795813,0.301005,99334.0,99333.0,0.00222428]
[1738671796028,0.584705,99334.0,99333.0,0.00022428]
[1738671796664,0.61478556,99334.0,99333.0,0.00022428]
[1738671798204,0.584705,99334.0,99333.0,0.00022428]
[1738671800020,0.68709006,99334.0,99333.0,0.00022428]
[1738671801003,0.66809006,99334.0,99333.0,0.00022428]
[1738671801651,0.565705,99334.0,99333.0,0.00022428]
[1738671801854,0.4147,99334.0,99333.0,0.00022428]
[1738671802030,0.113,99334.0,99333.0,0.28223128]
[1738671802463,0.115,99334.0,99333.0,0.13122428]
[1738671802804,0.113,99334.0,99333.0,0.13122428]
[1738671803104,0.113,99334.0,99333.0,0.13322428]
[1738671803332,0.113,99334.0,99333.0,0.13122428]
[1738671803502,0.13181812,99334.0,99333.0,0.13122428]
[1738671803746,0.13181812,99334.0,99333.0,0.13522428]
[1738671805744,0.13181812,99334.0,99333.0,0.13122428]
[1738671805915,0.11281812,99334.0,99333.0,0.13122428]
[1738671806114,0.01981812,99334.0,99333.0,0.13522428]
[1738671806324,0.01881812,99334.0,99333.0,0.13522428]
[1738671806534,0.01881812,99334.0,99333.0,0.28223128]
[1738671806974,0.01881812,99334.0,99333.0,0.28623128]
[1738671807194,0.01881812,99334.0,99333.0,0.28223128]
[1738671807602,0.03,99335.0,99334.0,0.151005]
[1738671807801,0.03,99335.0,99334.0,0.227905]
[1738671810930,0.011,99335.0,99334.0,0.227905]
[1738671811336,0.011,99335.0,99334.0,0.230905]
[1738671811721,0.18485027,99349.0,99337.0,0.151]
[1738671811915,0.01881217,99348.0,99337.0,0.151]
[1738671813009,0.01881217,99348.0,99336.0,0.151002]
[1738671813010,0.01881217,99347.0,99336.0,0.151002]
[1738671813206,0.01881217,99347.0,99337.0,0.153]
[1738671813638,0.01881217,99347.0,99337.0,0.151]
[1738671813847,0.01881217,99347.0,99337.0,0.153]
[1738671814300,0.01881217,99346.0,99337.0,0.151]
[1738671814500,0.01881217,99346.0,99337.0,0.153]
[1738671814804,0.01881217,99346.0,99337.0,0.002]
[1738671814997,0.01881217,99346.0,99337.0,0.152999]
[1738671815931,0.18466244,99349.0,99337.0,0.002]
[1738671816130,0.01880923,99345.0,99337.0,0.002]
[1738671816344,0.01880923,99345.0,99337.0,0.153]
[1738671816854,0.01880923,99345.0,99337.0,0.151]
[1738671817010,0.01880923,99345.0,99337.0,0.153]
[1738671817411,0.01880923,99345.0,99337.0,0.151]
[1738671817611,0.150985,99348.0,99337.0,0.151]
[1738671817834,0.150985,99348.0,99337.0,0.153]
[1738671818363,0.150985,99348.0,99337.0,0.154]
[1738671818579,0.150985,99348.0,99337.0,0.152]
[1738671819117,0.20131,99350.0,99337.0,0.001]
[1738671819323,0.150983,99349.0,99338.0,0.150998]
[1738671819905,0.150985,99348.0,99337.0,0.152001]
[1738671820105,0.20131,99350.0,99337.0,0.001]
[1738671820332,0.150984,99348.0,99338.0,0.150998]
[1738671820534,0.18426889,99352.0,99337.0,0.003]
[1738671820820,0.201306,99351.0,99338.0,0.150999]
[1738671821016,0.150982,99349.0,99338.0,0.150999]
[1738671821250,0.150984,99348.0,99337.0,0.154]
[1738671821451,0.201306,99351.0,99337.0,0.001]
[1738671821584,0.18426889,99352.0,99337.0,0.001]
[1738671821585,0.150986,99347.0,99337.0,0.001]
[1738671821791,0.150986,99347.0,99338.0,0.002]
[1738671822204,0.201308,99350.0,99337.0,0.001]
[1738671822393,0.150984,99348.0,99337.0,0.152]
[1738671822796,0.150984,99348.0,99338.0,0.150999]
[1738671823015,0.01,99341.0,99339.0,0.150998]
[1738671823221,0.01,99341.0,99340.0,0.150996]
[1738671823422,0.01,99341.0,99337.0,0.001]
[1738671823745,0.20133,99339.0,99337.0,0.002]
[1738671823951,0.150999,99338.0,99337.0,0.002]
[1738671824154,0.211355,99334.0,99333.0,0.00022428]
[1738671824454,0.31374006,99334.0,99333.0,0.00022428]
[1738671824578,0.76644006,99334.0,99333.0,0.00022428]
[1738671825852,0.76944006,99334.0,99333.0,0.00022428]
[1738671826087,0.79953842,99334.0,99333.0,0.00022428]
[1738671826948,0.92503314,99334.0,99333.0,0.00022428]
[1738671827935,0.92203314,99334.0,99333.0,0.00022428]
[1738671828508,0.93303314,99334.0,99333.0,0.00122428]
[1738671828887,0.95183213,99334.0,99333.0,0.00122428]
[1738671829085,0.84933741,99334.0,99333.0,0.00122428]
[1738671829298,0.84133741,99334.0,99333.0,0.00022428]
[1738671829698,0.84933741,99334.0,99333.0,0.00122428]
[1738671830688,0.76598741,99334.0,99333.0,0.00122428]
[1738671830976,0.76298741,99334.0,99333.0,0.00122428]
[1738671831361,0.76598741,99334.0,99333.0,0.00122428]
[1738671831566,0.75798741,99334.0,99333.0,0.00022428]
[1738671831772,0.76598741,99334.0,99333.0,0.00122428]
[1738671831945,0.76298741,99334.0,99333.0,0.00122428]
[1738671832147,0.75498741,99334.0,99333.0,0.00022428]
[1738671832346,0.76598741,99334.0,99333.0,0.00122428]
[1738671832779,0.75498741,99334.0,99333.0,0.00022428]
[1738671833172,0.76298741,99334.0,99333.0,0.00122428]
[1738671834333,0.76598741,99334.0,99333.0,0.00122428]
[1738671835320,0.72788905,99334.0,99333.0,0.00022428]
[1738671835827,0.73588905,99334.0,99333.0,0.00122428]
[1738671836042,0.72788905,99334.0,99333.0,0.00022428]
[1738671836219,0.72788905,99334.0,99333.0,0.00122428]
[1738671836421,0.73588905,99334.0,99333.0,0.00122428]
[1738671836649,0.72788905,99334.0,99333.0,0.00022428]
[1738671836856,0.47550399,99334.0,99333.0,0.00022428]
[1738671836985,0.32449899,99334.0,99333.0,0.08192428]
[1738671837362,0.32149899,99334.0,99333.0,0.08192428]
[1738671837553,0.455705,99334.0,99333.0,0.08192428]
[1738671838107,0.520055,99334.0,99333.0,0.00122428]
[1738671838304,0.520055,99334.0,99333.0,0.00222428]
[1738671838560,0.514055,99334.0,99333.0,0.00122428]
[1738671838979,0.514055,99334.0,99333.0,0.00322428]
[1738671839714,0.514055,99334.0,99333.0,0.00022428]
[1738671839918,0.453705,99334.0,99333.0,0.00122428]
[1738671841489,0.453705,99334.0,99333.0,0.00022428]
[1738671841629,0.61644006,99334.0,99333.0,0.00022428]
[1738671841852,0.76644006,99334.0,99333.0,0.00122428]
[1738671842061,0.78521826,99334.0,99333.0,0.00122428]
[1738671842280,0.78521826,99334.0,99333.0,0.00022428]
[1738671843263,0.6224832,99334.0,99333.0,0.00022428]
[1738671843859,0.72486826,99334.0,99333.0,0.00022428]
[1738671844120,0.78521826,99334.0,99333.0,0.00022428]
[1738671845524,0.6848332,99334.0,99333.0,0.00022428]
[1738671845932,0.6828332,99334.0,99333.0,0.00022428]
[1738671846130,0.6858332,99334.0,99333.0,0.00022428]
[1738671846531,0.6838332,99334.0,99333.0,0.00022428]
[1738671846736,0.6838332,99334.0,99333.0,0.00122428]
[1738671847154,0.6838332,99334.0,99333.0,0.00022428]
[1738671847359,0.6828332,99334.0,99333.0,0.00022428]
[1738671849814,0.78521826,99334.0,99333.0,0.00022428]
[1738671850685,0.78721826,99334.0,99333.0,0.00022428]
[1738671851345,2.31021826,99334.0,99333.0,0.00022428]
[1738671851886,0.84031219,99334.0,99333.0,0.00022428]
[1738671852112,0.83831219,99334.0,99333.0,0.00022428]
[1738671852352,0.84031219,99334.0,99333.0,0.00022428]
[1738671852825,0.84131219,99334.0,99333.0,0.00022428]
[1738671854879,0.84031219,99334.0,99333.0,0.00022428]
[1738671855397,0.84131219,99334.0,99333.0,0.00022428]
[1738671855555,0.85031219,99334.0,99333.0,0.00122428]
[1738671855763,0.83831219,99334.0,99333.0,0.00022428]
[1738671855957,0.84131219,99334.0,99333.0,0.00022428]
[1738671856286,0.95280691,99334.0,99333.0,2.8e-07]
[1738671856507,0.95280691,99334.0,99314.0,0.00022428]
[1738671856508,0.361384,99315.0,99314.0,0.00022428]
[1738671856704,0.46376906,99315.0,99314.0,0.00022428]
[1738671857108,0.51264119,99315.0,99314.0,0.00022428]
[1738671857696,0.51264119,99315.0,99314.0,0.00029999]
[1738671858236,0.45229119,99315.0,99314.0,0.00029999]
[1738671858669,0.45329119,99315.0,99314.0,0.00029999]
[1738671859111,0.45229119,99315.0,99314.0,0.00029999]
[1738671859515,0.45729119,99315.0,99314.0,0.00029999]
[1738671860090,0.63913591,99315.0,99314.0,0.00029999]
[1738671860622,0.64313591,99315.0,99314.0,0.00029999]
[1738671860844,0.64213591,99315.0,99314.0,0.00029999]
[1738671861255,0.64313591,99315.0,99314.0,0.00029999]
[1738671861445,0.94583591,99315.0,99314.0,0.00029999]
[1738671861884,0.94483591,99315.0,99314.0,0.00029999]
[1738671862063,0.94683591,99315.0,99314.0,0.00029999]
[1738671862368,0.87403718,99315.0,99314.0,0.00029999]
[1738671862570,0.87003718,99315.0,99314.0,0.00029999]
[1738671862932,0.87603718,99315.0,99314.0,0.00129999]
[1738671865464,0.85303718,99315.0,99314.0,0.00129999]
[1738671869618,0.87603718,99315.0,99314.0,0.00129999]
[1738671869823,0.9785319,99315.0,99314.0,0.00129999]
[1738671870030,1.0602319,99315.0,99314.0,0.00129999]
[1738671870651,0.95773718,99315.0,99314.0,0.00129999]
[1738671871242,0.95773718,99315.0,99290.0,0.0788]
[1738671871243,0.94973718,99315.0,99290.0,0.0788]
[1738671871467,0.94973718,99315.0,99288.0,0.0493]
[1738671871468,0.361405,99301.0,99288.0,0.0493]
[1738671871666,0.48679006,99301.0,99286.0,0.00022428]
[1738671871822,0.56299006,99301.0,99286.0,0.00022428]
[1738671872400,0.86569006,99301.0,99286.0,0.00022428]
[1738671872599,2.36569006,99301.0,99286.0,0.00022428]
[1738671872986,2.44468806,99301.0,99286.0,0.00022428]
[1738671873189,0.173,99300.0,99299.0,7e-08]
[1738671873392,0.58928678,99300.0,99299.0,7e-08]
[1738671874049,0.63438678,99300.0,99299.0,7e-08]
[1738671874255,0.69325891,99300.0,99299.0,7e-08]
[1738671874664,0.70125891,99300.0,99299.0,7e-08]
[1738671874867,0.69625891,99300.0,99299.0,7e-08]
[1738671875315,0.70525891,99300.0,99299.0,7e-08]
[1738671876109,0.60276419,99300.0,99299.0,7e-08]
[1738671876307,0.90246419,99300.0,99299.0,7e-08]
[1738671876652,2.40646419,99300.0,99299.0,7e-08]
[1738671877444,0.83528419,99300.0,99299.0,7e-08]
[1738671878592,0.82819026,99300.0,99299.0,7e-08]
[1738671878936,0.93068498,99300.0,99299.0,7e-08]
[1738671879169,0.93324698,99300.0,99299.0,7e-08]
[1738671880215,0.92076034,99300.0,99299.0,7e-08]
[1738671882130,2.42076034,99300.0,99299.0,7e-08]
[1738671883147,2.34124285,99300.0,99299.0,7e-08]
[1738671887893,2.33432285,99300.0,99299.0,7e-08]
[1738671888112,0.83432285,99300.0,99299.0,7e-08]
[1738671888478,2.33432285,99300.0,99299.0,7e-08]
[1738671889064,2.31554465,99300.0,99299.0,7e-08]
[1738671889379,2.41803937,99300.0,99299.0,7e-08]
[1738671889792,2.50801341,99300.0,99299.0,7e-08]
[1738671893934,2.41803937,99300.0,99299.0,7e-08]
[1738671896455,2.43685309,99300.0,99299.0,7e-08]
[1738671896868,2.43685309,99300.0,99287.0,0.00022428]
[1738671896869,0.361425,99288.0,99287.0,0.00022428]
[1738671897121,0.84579466,99288.0,99287.0,0.00022428]
[1738671897502,0.86460838,99288.0,99287.0,0.00022428]
[1738671897700,0.384428,99286.0,99285.0,8.4e-07]
[1738671897901,0.48681306,99286.0,99285.0,8.4e-07]
[1738671898309,0.49730422,99286.0,99285.0,8.4e-07]
[1738671899126,0.47430422,99286.0,99285.0,0.07630084]
[1738671899331,0.47430422,99286.0,99285.0,0.12540084]
[1738671899537,0.48130422,99286.0,99285.0,0.12540084]
[1738671899742,0.48330422,99286.0,99285.0,0.12540084]
[1738671900249,0.33330422,99286.0,99285.0,0.12540084]